Cogmind - Beta 13 @@@ ROGUE MODE // 2024.04.16 @ 22:01:30 Player: Bace Troncons Result: Destroyed by Piercing Trap Performance ------------- Evolutions (0) 0 Regions Visited (3) 600 Robots Destroyed (35) 175 Value Destroyed (710) 710 Prototype IDs (3) 60 Alien Tech Used (0) 0 Bonus (0) 0 TOTAL SCORE: 1545 Bonus ------- None Cogmind --------- Core Integrity 0/250 Matter 37/300 Energy 196/200 System Corruption 7% Temperature Cool (2) Movement Walking (190) Ox1 Location -10/Subcaves Parts ------- > --- POWER (1) -------- Subdweller Power Source > --- PROPULSION (2) --- Aluminum Leg Aluminum Leg > --- UTILITY (2) ------ Large Storage Unit Structural Scanner > --- WEAPON (2) ------- Datajack Mining Laser > --- INVENTORY (15) --- Sensor Array Signal Interpreter Seismic Detector Light Armor Plating Assault Rifle Subdweller Machine Gun Light Cannon Grenade Launcher Rocket Launcher Datajack Datajack Datajack Peak State ------------ > --- POWER ------------ Subdweller Power Source > --- PROPULSION ------- Aluminum Leg Aluminum Leg > --- UTILITY ---------- Large Storage Unit Structural Scanner > --- WEAPON ----------- Rocket Launcher Mining Laser > --- INVENTORY -------- Sensor Array Signal Interpreter Seismic Detector Light Armor Plating Assault Rifle Subdweller Machine Gun Light Cannon Grenade Launcher Datajack Datajack Datajack Datajack [Rating: 10] Favorites ----------- Power Light Ion Engine Engine Light Ion Engine Propulsion Light Treads Treads Light Treads Leg Aluminum Leg Utility Large Storage Unit Device Structural Scanner Storage Large Storage Unit Processor Transport Network Coupler Weapon Light Cannon Ballistic Gun Assault Rifle Ballistic Cannon Light Cannon Launcher Grenade Launcher Special Weapon Mining Laser Impact Weapon Hammer Special Melee Weapon Datajack Build | -11 -10 -10 -10 ------- Run | Yrd Mat Min Sub Slots Evolved . | . . . . Power . | . . . . Propulsion . | . . . . Utility . | . . . . Weapon . | . . . . Parts Attached 30 | 5 10 7 8 Power 3 | 1 . 1 1 Engine 3 | 1 . 1 1 Core . | . . . . Reactor . | . . . . Propulsion 6 | 2 1 1 2 Treads 3 | 2 . 1 . Leg 3 | . 1 . 2 Wheel . | . . . . Hover . | . . . . Flight . | . . . . Utility 4 | 1 2 . 1 Device 1 | . . . 1 Storage 2 | 1 1 . . Processor 1 | . 1 . . Hackware . | . . . . Protection . | . . . . Artifact . | . . . . Weapon 17 | 1 7 5 4 Energy Gun . | . . . . Energy Cannon . | . . . . Ballistic Gun 2 | 1 1 . . Ballistic Cannon 2 | . 2 . . Launcher 6 | . 2 3 1 Special Weapon 1 | . . . 1 Impact Weapon 2 | . 1 1 . Slashing Weapon . | . . . . Piercing Weapon . | . . . . Special Melee Weapon 4 | . 1 1 2 Unidentified Prototypes . | . . . . Parts Lost 7 | . 1 2 4 Power 2 | . . 1 1 Propulsion 3 | . 1 . 2 Utility . | . . . . Weapon 2 | . . 1 1 Highest Loss Streak 2 | . 1 1 2 To Critical Strikes . | . . . . Average Slot Usage (%) 93 | . 91 99 91 Engine 12 | . 14 13 8 Treads 17 | . 19 17 11 Leg 8 | . 3 10 14 Device 2 | . . . 10 Storage 14 | . 14 14 14 Processor 10 | . 12 14 3 Ballistic Gun 1 | . 3 . . Ballistic Cannon 7 | . 12 3 . Launcher 7 | . 3 10 12 Special Weapon 1 | . . . 5 Impact Weapon 5 | . 2 12 5 Special Melee Weapon 4 | . 5 1 4 Naked Turns . | . . . . Heaviest Build 31 | 10 29 29 31 Greatest Support 40 | 40 40 40 40 Greatest Overweight (x) 9 | 2 1 1 9 Average Overweight (x) . | . . . . Largest Inventory Capacity 15 | 8 15 15 15 Average Capacity 14 | 7 14 15 15 Most Carried 15 | 4 15 15 15 Average Carried 12 | 2 11 14 12 Final Capacity 15 | 8 15 15 15 Final Carried 15 | 4 15 15 12 Class Distribution -------------------- 100% | Mutant Dominant Class ---------------- Mutant | -10/Materials Mutant | -10/Mines Mutant | -10/Subcaves Resources | -11 -10 -10 -10 ----------- Run | Yrd Mat Min Sub Matter Collected 841 | 190 381 69 201 Remotely . | . . . . Salvage Created 642 | . 455 116 71 Parts 57 | . 44 6 7 Haulers Intercepted 2 | . 2 . . Recyclers Shooed . | . . . . Parts Field Recycled . | . . . . Retrieved Matter . | . . . . Parts Self-Destructed 2 | . . . 2 Prevented . | . . . . Kills | -11 -10 -10 -10 ------- Run | Yrd Mat Min Sub Combat Hostiles Destroyed 24 | . 12 8 4 Guns 2 | . 2 . . Cannons 5 | . 5 . . AOE 16 | . 5 7 4 Classes Destroyed 8 | . 7 . 1 Worker 4 | . 4 . . Hauler 2 | . 2 . . Recycler 1 | . 1 . . Operator 1 | . 1 . . Watcher 3 | . 3 . . Swarmer 11 | . 6 5 . Grunt 9 | . 6 3 . Subdweller 4 | . . . 4 Best Kill Streak 4 | . 4 3 2 Combat Bots Only 3 | . 3 3 2 Max Kills in Single Turn 4 | . 4 2 1 Gunslinging . | . . . . Exploded 2 | . 2 2 1 Melee . | . . . . Uniques/NPCs Destroyed . | . . . . Combat | -11 -10 -10 -10 -------- Run | Yrd Mat Min Sub Hostile Shots Fired 87 | . 37 36 14 Missed 27 | . 12 13 2 Damage Taken 1192 | . 351 259 582 Core 258 | . 44 48 166 Absorbed by Shields . | . . . . Core Remaining (%) 100 | 100 . . . Volleys Fired 58 | . 31 12 15 Largest 2 | . 2 2 1 Hottest 65 | . 65 65 33 Shots Fired 85 | . 54 15 16 Gun 18 | . 18 . . Cannon 26 | . 23 3 . Launcher 41 | . 13 12 16 Special . | . . . . Kinetic 44 | . 41 3 . Thermal . | . . . . Explosive 41 | . 13 12 16 Electromagnetic . | . . . . Robot Hit Streak 7 | . 7 4 5 Robot Miss Streak 3 | . 3 3 1 Penetration Max . | . . . . Secondary Targets . | . . . . Shots Hit Robots 59 | . 38 12 9 Core Hits 43 | . 31 7 5 Critical Kills . | . . . . Critical Parts Destroyed 1 | . . 1 . Critical Strikes 2 | . 1 1 . Blast 1 | . 1 . . Smash 1 | . . 1 . Melee Attacks 37 | . 11 9 17 Impact 19 | . . 3 16 Slashing . | . . . . Piercing . | . . . . Sneak Attacks 17 | . 11 5 1 Combat Hostiles . | . . . . Follow-up Attacks . | . . . . Damage Inflicted 2250 | . 1181 489 580 Guns 121 | . 121 . . Cannons 269 | . 269 . . Explosions 1814 | . 791 443 580 Melee 46 | . . 46 . Ramming . | . . . . Kinetic 390 | . 390 . . Thermal 101 | . 101 . . Explosive 1713 | . 690 443 580 Electromagnetic . | . . . . Impact 46 | . . 46 . Slashing . | . . . . Piercing . | . . . . Highest Corruption 7 | . 1 1 7 Average Corruption 2 | . 1 1 4 Corruption Purged . | . . . . Corruption Blocked . | . . . . Effects 35 | . 3 9 23 Message Errors 3 | . . 2 1 Matter Fused 9 | . . 1 8 Heat Flow Errors 4 | . . . 4 Energy Discharges 8 | . 1 2 5 Data Loss (minor) 8 | . . 4 4 Data Loss (major) 2 | . 2 . . Misfires 1 | . . . 1 Overload Shots . | . . . . Overflow Damage 156 | . 82 74 . Projectiles . | . . . . Explosions 128 | . 82 46 . Melee 28 | . . 28 . Knockbacks 3 | . 3 . . Impact . | . . . . Kinetic 2 | . 2 . . Secondary 1 | . 1 . . Self-Inflicted Damage 268 | . 124 41 103 Shots 9 | . 3 2 4 Rammed . | . . . . Targets Rammed . | . . . . Kicked . | . . . . Crushed . | . . . . Highest Temperature 259 | . 15 3 259 Average Temperature 60 | . 6 2 114 Received Heat Transfer 437 | . 66 45 326 Effects 1 | . . . 1 Energy Bleed 1 | . . . 1 Siege Activations . | . . . . Robots Corrupted . | . . . . Combat Hostiles . | . . . . Parts Fried 2 | . . 2 . Impact Corruptions 1 | . . 1 . Robots Melted . | . . . . Combat Hostiles . | . . . . Parts Melted . | . . . . Heat Transferred 50 | . 50 . . Parts Sabotaged . | . . . . Parts Stolen . | . . . . Parts Stripped . | . . . . Power Chain Reactions . | . . . . Alert | -11 -10 -10 -10 ------- Run | Yrd Mat Min Sub Peak Influence 202 | . 202 174 . Initial . | . . . . Average 50 | . 51 52 . Maximum Alert Level 1 | . 1 . . Low Security (%) 99 | 100 99 100 . Level 1 . | . . . . Level 2 . | . . . . Level 3 . | . . . . Level 4 . | . . . . Level 5 . | . . . . High Security . | . . . . Max Security . | . . . . Squads Dispatched 2 | . 1 1 . Investigation 1 | . . 1 . Extermination . | . . . . Reinforcement 1 | . 1 . . Assault . | . . . . Garrison . | . . . . Intercept . | . . . . Searches Triggered . | . . . . Construction Impeded . | . . . . Haulers Reinforced . | . . . . Active Scanning Responses . | . . . . Cargo Convoy Interrupts . | . . . . Stealth | -11 -10 -10 -10 --------- Run | Yrd Mat Min Sub Distress Signals 1 | . 1 . . Communications Jammed . | . . . . Distress Signals . | . . . . Times Spotted 33 | . 18 11 4 Peak Tracking Total 4 | . 4 3 2 Tactical Retreats 3 | . . 3 . Traps | -11 -10 -10 -10 ------- Run | Yrd Mat Min Sub Traps Triggered 1 | . . . 1 Indirectly . | . . . . Trap Hack Attempts . | . . . . Triggered . | . . . . Disarmed . | . . . . Reprogrammed . | . . . . Reused . | . . . . Traps Extracted . | . . . . Installed . | . . . . Triggered . | . . . . Machines | -11 -10 -10 -10 ---------- Run | Yrd Mat Min Sub Machines Disabled 3 | . 3 . . Max in Single Turn 3 | . 3 . . Machines Repaired . | . . . . Machines Dismantled . | . . . . Machines Sabotaged . | . . . . Overloaded Fab Kills . | . . . . Hacking | -11 -10 -10 -10 --------- Run | Yrd Mat Min Sub Machines Accessed 9 | . 8 1 . Terminals 6 | . 5 1 . Fabricators . | . . . . Repair Stations 1 | . 1 . . Recycling Units 2 | . 2 . . Scanalyzers . | . . . . Garrison Access . | . . . . Total Hacks 31 | . 28 3 . Successful 13 | . 12 1 . Failed 18 | . 16 2 . Catastrophic 1 | . 1 . . Database Lockouts . | . . . . Manual 3 | . 2 1 . Terminals 24 | . 21 3 . Fabricators . | . . . . Repair Stations 3 | . 3 . . Recycling Units 4 | . 4 . . Scanalyzers . | . . . . Garrison Access . | . . . . Terminal Hacks 11 | . 10 1 . Robot Analysis 1 | . 1 . . Prototype ID Bank 2 | . 1 1 . Level Access Points 1 | . 1 . . Emergency Access Points 1 | . 1 . . Alert Level 1 | . 1 . . Locate Traps 1 | . 1 . . Hauler Manifests 1 | . 1 . . Registered Prototypes 1 | . 1 . . Zone Layout 2 | . 2 . . Fabricator Hacks . | . . . . Repair Station Hacks 1 | . 1 . . Scan Component 1 | . 1 . . Recycling Unit Hacks 1 | . 1 . . Report Inventory 1 | . 1 . . Scanalyzer . | . . . . Garrison Access Hacks . | . . . . Unauthorized Hacks . | . . . . Terminals . | . . . . Fabricators . | . . . . Repair Stations . | . . . . Recycling Units . | . . . . Scanalyzers . | . . . . Garrison Access . | . . . . Data Cores Recovered . | . . . . Used . | . . . . Hacking Detections 8 | . 7 1 . Full Trace Events 4 | . 3 1 . Feedback Events 1 | . 1 . . Corruption 1 | . 1 . . Feedback Blocked . | . . . . Robot Schematics Acquired . | . . . . Robots Built . | . . . . Authchips . | . . . . Time . | . . . . Total Robot Build Rating . | . . . . Part Schematics Acquired . | . . . . Parts Built . | . . . . Authchips . | . . . . Time . | . . . . Total Part Build Rating . | . . . . Parts Repaired . | . . . . Time . | . . . . Parts Recycled . | . . . . Recycled Matter . | . . . . Retrieved Matter . | . . . . Retrieved Components . | . . . . Parts Scanalyzed . | . . . . Part Schematics Acquired . | . . . . Parts Damaged . | . . . . Bothacking | -11 -10 -10 -10 ------------ Run | Yrd Mat Min Sub Used RIF Installer . | . . . . Robots Hacked 10 | . 5 4 1 Non-combat 9 | . 5 3 1 Combat 1 | . . 1 . Robot Hacks Applied 14 | . 8 5 1 parse_system 11 | . 6 4 1 no_distress 3 | . 2 1 . Relay Couplers Released . | . . . . Fabnet Peak Effective % . | . . . . Robots Rewired . | . . . . Allies Hacked . | . . . . Hacks Repelled . | . . . . Allies | -11 -10 -10 -10 -------- Run | Yrd Mat Min Sub Total Allies . | . . . . Largest Group . | . . . . Highest-Rated Group . | . . . . Highest-Rated Ally . | . . . . Total Orders . | . . . . Ally Attacks . | . . . . Total Damage . | . . . . Kills . | . . . . Allies Corrupted . | . . . . Allies Melted . | . . . . Intel | -11 -10 -10 -10 ------- Run | Yrd Mat Min Sub Robot Analysis Total 1 | . 1 . . Derelict Logs Recovered 3 | . . 1 2 Drone Launches . | . . . . Drone Recoveries . | . . . . Exploration | -11 -10 -10 -10 ------------- Run | Yrd Mat Min Sub Turns Passed 4642 | 95 2356 1252 939 Spaces Moved 2149 | 54 1088 550 457 Core 17 | 16 . . 1 Treads 1891 | 38 1088 550 215 Legs 241 | . . . 241 Wheels . | . . . . Hover . | . . . . Flight . | . . . . Fastest Speed 50 | 50 160 160 160 Average Speed 200 | 151 203 214 181 Slowest Speed 500 | 160 240 240 500 Overloaded Moves . | . . . . Propulsion Burnouts . | . . . . Robots Hopped . | . . . . Cave-ins Triggered 1 | . . . 1 Exploration Rate (%) 56 | 4 95 97 31 Regions Visited 3 Branch Regions 2 Pre-discovered Areas 1 | . . 1 . Known Exits Taken . | . . . . Unknown Exits Taken 3 | 1 1 1 . Scrap Searched 1 | . . 1 . Spaces Dug 59 | . 11 38 10 Terrain Destroyed 249 | . 71 75 103 Melee 2 | . . . 2 Projectile . | . . . . AOE 247 | . 71 75 101 Terrain Rammed . | . . . . Walls Destroyed . | . . . . Machines Disabled . | . . . . Actions | -11 -10 -10 -10 --------- Run | Yrd Mat Min Sub Total 2356 | 67 1172 596 521 Wait 51 | . 12 17 22 Move 2146 | 53 1087 549 457 Hop . | . . . . Pick Up 30 | 9 17 2 2 Fast Attach . | . . . . Attach 15 | 5 4 2 4 Detach 1 | . 1 . . Swap 15 | . 6 5 4 Drop 3 | . 3 . . Fire 58 | . 31 12 15 Melee 37 | . 11 9 17 Ram . | . . . . Kick . | . . . . Crush . | . . . . Escape Stasis . | . . . . Rewire . | . . . . Trap . | . . . . Miscellaneous . | . . . . Route ------- -11/Scrapyard -10/Materials (discovered 5 exits: *Mat x3 / *Min x2) -10/Mines (discovered 3 exits: *Mat x2 / [*Sub]) -10/Subcaves (discovered 1 exit: [*Mat]) History --------- Turn | Location | Event 12 | -11/Scrapyard | Discovered new exit (range 15) 96 | -11/Scrapyard | Entered Materials 225 | -10/Materials | Discovered new exit (range 14) 314 | -10/Materials | Build established: Mutant 655 | -10/Materials | Discovered new exit (range 15) 953 | -10/Materials | Discovered new exit (range 12) 1247 | -10/Materials | Identified exit to Materials 1247 | -10/Materials | Discovered new exit (range 17) 2452 | -10/Materials | Entered Mines 2453 | -10/Mines | Learned location of Storage (-7) 2555 | -10/Mines | Received a Rocket Launcher from a helpful Derelict 2585 | -10/Mines | Discovered exit to Materials (range 11) 2927 | -10/Mines | Learned location of 1 exit from Materials 2939 | -10/Mines | Discovered exit to Materials (range 5) 3694 | -10/Mines | Discovered new exit (range 7) 3704 | -10/Mines | Entered Subcaves 3780 | -10/Subcaves | Learned Materials interactive machine intel 4054 | -10/Subcaves | Crushed by falling debris 4134 | -10/Subcaves | Core integrity fell below 50% 4135 | -10/Subcaves | Ambushed by Subdweller buried in earth 4152 | -10/Subcaves | Core integrity fell below 20% 4269 | -10/Subcaves | A swath of the cavern ceiling suddenly collapsed 4375 | -10/Subcaves | Learned location of 1 exit from Materials 4491 | -10/Subcaves | Discovered new exit (range 12) 4495 | -10/Subcaves | Shifting Twisted Machinery released Sub. Machine Gun 4511 | -10/Subcaves | Shifting Twisted Machinery released Sub. Power Source 4643 | -10/Subcaves | Destroyed by Piercing Trap Last Messages --------------- 04451_ System corrupted: Heat flow error (+264). 04482_ System corrupted: Component data lost. 04491_ EXIT=FOUND Sub. Machine Gun falls loose from the Twisted Machinery. 04507_ System corrupted: Matter fused (-7). Sub. Power Source falls loose from the Twisted Machinery. 04527_ Acquired Sub. Machine Gun. 04530_ System corrupted: Energy discharge (-38). 04535_ Acquired Sub. Power Source. 04546_ System corrupted: FCS attempts to trigger Rocket Launcher. 04546_ System corrupted: Rocket Launcher misfires. 04566_ The unstable cave ceiling collapses. 04568_ System corrupted: Component data lost. 04631_ System corrupted: Heat flow error (+198). 04643_ Triggered Piercing Trap. 04643_ Spikes shoot up from the floor. Map ----- +----------------------------------------------------+ | | | | | | | | | | | | | | | | | | | | | | | | | ?????????????????????????????????????????????????? | | ?????????????????????????????????????????????????? | | ?????????????????????????????????????????????????? | | ?????????????????????????????????????????????????? | | ???????????????????????## ???????????????????????? | | ???????????????????????##<<<"##??????????????????? | | ???????????????????????#<<< <##??????????????????? | | ????????????????????????<<<<<##??????????????????? | | ???????????????????????#<< <##??????????????????? | | ??????????????????????### <<##??????????????????? | | ?????????????????######## << ##??????????????????? | | ?????????????????#######<<<<<##??????????????????? | | ?????????????????## # <<###??????????????????? | | ?????????????????### @ <##?#########?????????? | | ???????????????#### ## ##############????????? | | ????????###???#####" "######### ####???????? | | ????????## ## " ### # ###???????? | | ??? ##???????? | | ???## ###### ##???????? | | ???####### ## ###### ###???????? | | ??????#### ######### ## #########???? | | ????????## ??######## ##############??? | | ?????### ######?## ########### ###??? | | ?????## ######?## ######## ""## ##??? | | ?????## ? ?## ######### " ##??? | | ????????? ??? ??## ######### "# ###??? | | ?????????????? ??## ## #" #####? | | ??????????????## ??### " #####? | | ??????????????### ##### < ##? | | ???????????????## #### ##### # ## # ##? | | ??????????????### #### ########## ###? | | ?????????????#### #### ######### ##? | | ????????????#### ### ####?????## #####? | | ???????????#### ####?????##########? | | ??????????### ####?????#######???? | | ??????????## ## ##???????????????? | | ?????? #### ## ####?????????????? | | ??????### #### ### ######???????????? | +----------------------------------------------------+ Best States ------------- Heat Dissipation 25 Energy Generation 15 Energy Capacity 200 Matter Stores 300 Matter Capacity 300 Sight Range 16 Terrain Scan Density 10 Evasion (%) 40 Recoil Reduction 2 Item Schematics ----------------- None Robot Schematics ------------------ None Fabricated ------------ Nothing Alien Tech Used ----------------- None Achievements -------------- None Challenges ------------ None Game ------ Seed DrainedBattleSuite Manual? 0 Play Time 00:35:02 Cumulative 24.2 hours Start 2024.04.16 @ 21:27:28 End 2024.04.16 @ 22:01:30 Sessions 1 Manual Loads 0 Difficulty Rogue Special Mode None Game No. 48 Rogue 48 Adventurer 0 Explorer 0 Win Type - Total 0 Types 0/0/0/0/0/0/0/0/0 Lore% 18 Gallery% 23 Achievement% 19 Wizard Run 0 Options --------- Layout 1 ASCII 0 Keyboard 1 Movement Numpad Keybinds 0 Fullscreen 1 Font 24/Smallcaps Map View 50x35 Zoom Use 0% Tactical HUD 1 Map Filters NONE Filters NONE Steam 1 RUN: 2b6ef903-6233-467f-a97a-7a25c9148f76